fUSD/lending_fUSD_20240406
["ID","MTS","AMOUNT","RATE_DAILY","PERIOD"]
[321695262,1712399446276,-500.0,0.00023899,2]
[321695263,1712399446285,-500.0,0.00023899,2]
[321695264,1712399446294,-500.0,0.00023899,2]
[321695265,1712399446305,-500.0,0.00023899,2]
[321695266,1712399446315,-500.0,0.00023899,2]
[321695267,1712399446325,-500.0,0.00023899,2]
[321695268,1712399446335,-500.0,0.00023899,2]
[321695269,1712399446344,-500.0,0.00023899,2]
[321695270,1712399446353,-500.0,0.00023899,2]
[321695271,1712399446363,-500.0,0.00023899,2]
[321695272,1712399446374,-608.64,0.00023899,2]
[321695273,1712399446385,-500.0,0.00023899,2]
[321695274,1712399446395,-500.0,0.00023899,2]
[321695275,1712399446405,-158.36908003,0.00023899,2]
[321695276,1712399446414,-500.0,0.00023899,2]
[321695277,1712399446424,-500.0,0.00023899,2]
[321695278,1712399446433,-500.0,0.00023899,2]
[321695279,1712399446443,-500.0,0.00023899,2]
[321695280,1712399446453,-500.0,0.00023899,2]
[321695281,1712399446463,-500.0,0.00023899,2]
[321695282,1712399446472,-500.0,0.00023899,2]
[321695283,1712399446481,-500.0,0.00023899,2]
[321695284,1712399446491,-324.30702117,0.00023899,2]
[321695285,1712399446502,-500.0,0.00023899,2]
[321695286,1712399446513,-500.0,0.00023899,2]
[321695287,1712399446523,-500.0,0.00023899,2]
[321695288,1712399446533,-500.0,0.00023899,2]
[321695289,1712399446545,-500.0,0.00023899,2]
[321695290,1712399446555,-500.0,0.00023899,2]
[321695291,1712399446565,-500.0,0.00023899,2]
[321695292,1712399446577,-500.0,0.00023899,2]
[321695293,1712399446587,-500.0,0.00023899,2]
[321695294,1712399446597,-500.0,0.00023899,2]
[321695295,1712399446608,-500.0,0.00023899,2]
[321695296,1712399446619,-500.0,0.00023899,2]
[321695297,1712399446628,-500.0,0.00023899,2]
[321695298,1712399446637,-500.0,0.00023899,2]
[321695299,1712399446647,-387.43022888,0.00023899,2]
[321695300,1712399446656,-500.0,0.00023899,2]
[321695301,1712399446666,-500.0,0.00023899,2]
[321695302,1712399446676,-500.0,0.00023899,2]
[321695303,1712399446686,-500.0,0.00023899,2]
[321695304,1712399446695,-500.0,0.00023899,2]
[321695305,1712399446705,-500.0,0.00023899,2]
[321695306,1712399446715,-500.0,0.00023899,2]
[321695307,1712399446725,-346.61200845,0.00023899,2]
[321695308,1712399446736,-262.15280446,0.00023899,2]
[321695309,1712399446746,-500.0,0.00023899,2]
[321695310,1712399446756,-500.0,0.00023899,2]
[321695311,1712399446766,-500.0,0.00023899,2]
[321695312,1712399446777,-449.30655627,0.00023899,2]
[321695313,1712399446786,-500.0,0.00023899,2]
[321695314,1712399446797,-500.0,0.00023899,2]
[321695315,1712399446807,-500.0,0.00023899,2]
[321695316,1712399446818,-500.0,0.00023899,2]
[321695317,1712399446829,-500.0,0.00023899,2]
[321695318,1712399446841,-500.0,0.00023899,2]
[321695319,1712399446851,-500.0,0.00023899,2]
[321695320,1712399446863,-500.0,0.00023899,2]
[321695321,1712399446875,-500.0,0.00023899,2]
[321695322,1712399446886,-618.20901607,0.00023899,2]
[321695323,1712399446897,-500.0,0.00023899,2]
[321695324,1712399446910,-500.0,0.00023899,2]
[321695325,1712399446922,-500.0,0.00023899,2]
[321695326,1712399446932,-500.0,0.00023899,2]
[321695327,1712399446944,-500.0,0.00023899,2]
[321695328,1712399446955,-500.0,0.00023899,2]
[321695329,1712399446969,-500.0,0.00023899,2]
[321695330,1712399446979,-500.0,0.00023899,2]
[321695331,1712399446989,-500.0,0.00023899,2]
[321695332,1712399447000,-500.0,0.00023899,2]
[321695333,1712399447010,-500.0,0.00023899,2]
[321695334,1712399447020,-500.0,0.00023899,2]
[321695335,1712399447031,-500.0,0.00023899,2]
[321695336,1712399447042,-14858.09916288,0.00023899,2]
[321695337,1712399447100,-7267.60092095,0.00023899,2]
[321695353,1712400123818,4351.84536889,0.00021,2]
[321695375,1712400354266,5269.0,0.0002,2]
[321695381,1712400432140,-428.16501449,0.00021068,2]
[321695382,1712400448360,-171.83498551,0.00021069,2]
[321695383,1712400460632,316.8,0.00020814,2]
[321695402,1712400631654,-374.126165,0.00022258,2]
[321695403,1712400631665,-155.59965855,0.0002237,2]
[321695404,1712400631675,-4570.53799336,0.00022684,2]
[321695405,1712400631686,-403.3824467,0.00022685,2]
[321695406,1712400631761,-500.71354731,0.00022685,2]
[321695407,1712400631817,-893.97357438,0.00022685,2]
[321695408,1712400631830,-1316.11043161,0.00022685,2]
[321695409,1712400631841,-800.0,0.00022685,2]
[321695410,1712400631854,-223.85,0.00022694,10]
[321695411,1712400631864,-358.48,0.00022712,2]
[321695412,1712400631873,-200.0,0.00022895,2]
[321695413,1712400631883,-163.75,0.00022946,2]
[321695414,1712400631893,-316.8,0.00023078,2]
[321695415,1712400631902,-19.80472059,0.0002325,10]
[321695416,1712400631926,-204.04527941,0.0002325,10]
[321695417,1712400631936,-150.0,0.00023463,2]
[321695418,1712400631949,-418.14426,0.0002366,2]
[321695419,1712400631958,-936.9083,0.000237,2]
[321695420,1712400631968,-384.72482667,0.000237,2]
[321695421,1712400631977,-2177.38565617,0.000237,2]
[321695491,1712400637760,-256.37166638,0.000237,2]
[321695492,1712400637771,-514.15679061,0.000237,2]
[321695493,1712400637815,-907.87201028,0.000237,2]
[321695500,1712400639676,-2317.97119911,0.000237,2]
[321695501,1712400639686,-5150.34966089,0.000237,2]
[321695502,1712400639943,-1468.06024433,0.000237,2]
[321695503,1712400639998,-881.59009478,0.000237,2]
[321695504,1712400640008,-813.92990522,0.000237,2]
[321695505,1712400640020,-931.54412496,0.000237,2]
[321695506,1712400640053,-575.84726982,0.000237,2]
[321695507,1712400640063,-312.12044839,0.000237,2]
[321695508,1712400640072,-800.0,0.00023708,2]
[321695509,1712400640082,-500.0,0.00023708,2]
[321695510,1712400640091,-156.8,0.0002379,2]
[321695511,1712400640101,-23439.2952,0.00023792,2]
[321695512,1712400640110,-2860.47688042,0.00023798,2]
[321695513,1712400640121,-500.0,0.00023798,2]
[321695514,1712400640132,-281.3845337,0.00023798,2]
[321695515,1712400640141,-302.4741937,0.00023798,2]
[321695516,1712400640151,-154.53413923,0.00023799,2]
[321695517,1712400640160,-393.01405358,0.00023799,2]
[321695518,1712400640170,-500.0,0.00023799,2]
[321695519,1712400640179,-500.0,0.00023799,2]
[321695520,1712400640189,-500.0,0.00023799,2]
[321695521,1712400640198,-500.0,0.00023799,2]
[321695522,1712400640207,-500.0,0.00023799,2]
[321695523,1712400640217,-500.0,0.00023799,2]
[321695524,1712400640227,-500.0,0.00023799,2]
[321695525,1712400640237,-500.0,0.00023799,2]
[321695526,1712400640248,-500.0,0.00023799,2]
[321695527,1712400640259,-379.80356877,0.00023799,2]
[321695529,1712400640269,-7262.3297869,0.000238,2]
[321695531,1712400640278,-23962.20297609,0.000238,2]
[321695571,1712400642650,-6698.87628425,0.000238,2]
[321695572,1712400642765,-669338.92073966,0.000238,2]
[321695573,1712400642775,-1242.0,0.000238,2]
[321695574,1712400642785,-27517.83927645,0.000238,2]
[321695575,1712400642794,-2484.01465464,0.000238,2]
[321695576,1712400642803,-200.2142224,0.000238,2]
[321695577,1712400642812,-630.62677586,0.000238,2]
[321695578,1712400642822,-223.85,0.00023807,10]
[321695579,1712400642831,-384.72482658,0.00023833,2]
[321695580,1712400642840,-2433.7573225,0.00023833,2]
[321695581,1712400642853,-312.12044837,0.00023833,2]
[321695582,1712400642863,-15373.30149907,0.0002388,2]
[321695583,1712400642872,-156.8,0.00023889,2]
[321695584,1712400642881,-156.8,0.0002389,2]
[321695585,1712400642891,-2460.9865581,0.00023892,2]
[321695586,1712400642900,-7299.2655221,0.00023892,2]
[321695587,1712400642919,-75434.145555,0.00023892,2]
[321695588,1712400642928,-178.51741924,0.00023897,2]
[321695589,1712400642939,-599.90220092,0.00023897,2]
[321695590,1712400642949,-515.05377787,0.00023897,2]
[321695591,1712400642958,-500.0,0.00023897,2]
[321695592,1712400642967,-322.04066775,0.00023898,2]
[321695593,1712400642976,-6415.56068767,0.00023898,2]
[321695594,1712400642986,-792.50385449,0.00023898,2]
[321695595,1712400642996,-42814.49038306,0.00023898,2]
[321695596,1712400643005,-1053.37363447,0.00023898,2]
[321695597,1712400643015,-624.05493274,0.00023898,2]
[321695598,1712400643025,-350.0,0.00023898,2]
[321695599,1712400643034,-844.34598028,0.00023898,2]
[321695600,1712400643044,-5822.10587372,0.00023898,2]
[321695601,1712400643053,-151.0,0.00023898,7]
[321695602,1712400643062,-172.607636,0.00023898,2]
[321695603,1712400643072,-172.607636,0.00023898,2]
[321695604,1712400643081,-500.0,0.00023898,2]
[321695605,1712400643090,-500.0,0.00023898,2]
[321695606,1712400643100,-500.0,0.00023898,2]
[321695607,1712400643109,-281.05695544,0.00023898,2]
[321695608,1712400643118,-500.0,0.00023898,2]
[321695609,1712400643127,-500.0,0.00023898,2]
[321695610,1712400643138,-500.0,0.00023898,2]
[321695611,1712400643147,-500.0,0.00023898,2]
[321695612,1712400643157,-500.0,0.00023898,2]
[321695613,1712400643167,-500.0,0.00023898,2]
[321695614,1712400643177,-500.0,0.00023898,2]
[321695615,1712400643187,-500.0,0.00023898,2]
[321695616,1712400643197,-500.0,0.00023898,2]
[321695618,1712400643207,-848.0,0.00023898,2]
[321695620,1712400643216,-320334.67712899,0.00023898,2]
[321695622,1712400643236,-2847.59268996,0.00023898,2]
[321695623,1712400643258,-555.61130365,0.00023898,2]
[321695628,1712400645896,-196.58505653,0.00023799,2]
[321695629,1712400645906,-4528.93309374,0.00023898,2]
[321695630,1712400645924,-9700.52776506,0.00023898,2]
[321695631,1712400645977,-98537.37939712,0.00023898,2]
[321695632,1712400646006,-3648.12180736,0.00023898,2]
[321695633,1712400646061,-5225.93672596,0.00023898,2]
[321695666,1712400659857,155.44105241,0.00020814,2]
[321695667,1712400670054,489906.9135787,0.00021,2]
[321695668,1712400672356,1484.24653577,0.000154,2]
[321695670,1712400683821,362.32102287,0.00016798,2]
[321695671,1712400687115,508.79829098,0.00018,2]
[321695672,1712400707504,20119.8272897,0.00016798,2]
[321695674,1712400727504,8119.88934363,0.00016798,2]
[321695676,1712400747578,-600.0,0.00020809,2]
[321695678,1712400749766,150.38291498,0.00015,2]
[321695685,1712400851124,-600.0,0.00020708,2]
[321695686,1712400863534,223.85,0.00020271,10]
[321695688,1712400870395,3220.64262003,0.00015,2]
[321695689,1712400880138,-258.15,0.00020244,2]
[321695690,1712400880160,-341.85,0.00020271,2]
[321695691,1712400911329,-600.0,0.00020244,2]
[321695694,1712401005106,-600.0,0.00020187,2]
[321695695,1712401023173,301.1,0.00020989,3]
[321695696,1712401053051,-600.0,0.00019736,2]
[321695697,1712401058405,151.0,0.00029478,120]
[321695700,1712401096515,366.8,0.00017924,2]
[321695714,1712401272397,-1968.4207604,0.00019375,2]
[321695715,1712401272424,-1210.58734192,0.00019376,2]
[321695716,1712401272452,-155.0,0.00019376,2]
[321695717,1712401272706,-375.77516328,0.00019377,2]
[321695718,1712401272734,-155.0,0.00019377,2]
[321695719,1712401272759,-748.22929307,0.00019378,2]
[321695720,1712401272785,-219.00197946,0.00019379,2]
[321695721,1712401272810,-312.54704425,0.00019476,2]
[321695722,1712401272839,-1057.73663461,0.00019476,2]
[321695723,1712401272864,-446.8879432,0.00019476,2]
[321695724,1712401272892,-155.0,0.00019477,2]
[321695725,1712401272919,-620.18279938,0.00019477,2]
[321695726,1712401272946,-10542.02132915,0.00019477,2]
[321695727,1712401272972,-200.0,0.00019481,2]
[321695728,1712401273000,-150.0,0.00019583,2]
[321695729,1712401273026,-300.0,0.00019583,2]
[321695730,1712401273056,-23900.0,0.00019585,2]
[321695731,1712401273087,-150.99,0.00019585,2]
[321695732,1712401273115,-14044.00921259,0.00019733,2]
[321695733,1712401273142,-1190.69021461,0.00019736,2]
[321695734,1712401273169,-5783.25,0.00019736,2]
[321695735,1712401273195,-501.02113051,0.00019738,2]
[321695736,1712401273221,-3593.04,0.00019762,2]
[321695737,1712401273248,-1263.68856316,0.00019948,2]
[321695738,1712401273275,-290.92,0.00019949,2]
[321695739,1712401273337,704.49276447,0.00019375,2]
[321695740,1712401275122,620.18279938,0.00019374,2]
[321695749,1712401283497,748.22929307,0.00018727,2]
[321695752,1712401288897,368.0,0.00019979,2]
[321695756,1712401303501,240.67770199,0.00018727,2]
[321695759,1712401321747,1136.00445021,0.00019979,2]
[321695760,1712401323858,863.11991372,0.00019979,2]
[321695761,1712401324895,317.49252544,0.00019979,2]
[321695762,1712401328494,679.98,0.00019979,2]
[321695763,1712401340174,190.66,0.00019979,10]
[321695766,1712401372337,155.0,0.00019979,2]
[321695770,1712401392344,199.95276803,0.00019979,2]
[321695772,1712401419004,708.37,0.00019559,2]
[321695773,1712401433526,733.2,0.00019559,2]
[321695774,1712401434002,258.15,0.00019586,2]
[321695776,1712401484749,150.0,0.00019586,2]
[321695777,1712401496260,1483.24,0.00019588,2]
[321695778,1712401521596,1377.44,0.00019745,2]
[321695779,1712401590418,6728.15,0.00019613,2]
[321695780,1712401599739,500.0,0.00019673,2]
[321695781,1712401600172,348.46,0.00017755,2]
[321695783,1712401612433,23395.76,0.00019642,2]
[321695784,1712401623806,200.0,0.00019638,2]
[321695785,1712401638568,151.0,0.0002976,120]
[321695786,1712401693541,290.92,0.00019638,2]
[321695791,1712401735913,888459.1783741,0.00019,2]
[321695793,1712401798894,190.66,0.00019461,10]
[321695794,1712401818750,-155.0,0.00018998,2]
[321695795,1712401818772,-375.77516328,0.00018998,2]
[321695796,1712401818793,-150.0,0.00018999,2]
[321695797,1712401818815,-1190828.22483672,0.00019,2]
[321695804,1712401831884,-553.17144713,0.00018999,2]
[321695805,1712401831893,-611.91864715,0.00019,2]
[321695806,1712401831903,-500.0,0.00019551,2]
[321695807,1712401831913,-302.40106346,0.00019804,2]
[321695808,1712401831924,-3962.56222324,0.00019904,2]
[321695809,1712401831933,-16573.8037,0.00019904,2]
[321695810,1712401831944,-624.05493274,0.0002,2]
[321695811,1712401831954,-348.46,0.00020019,2]
[321695812,1712401831964,-151.05,0.00020076,2]
[321695813,1712401831973,-4675.29,0.00020117,2]
[321695814,1712401831982,-151.05,0.00020138,2]
[321695815,1712401831992,-999.99,0.00020188,2]
[321695816,1712401832002,-150.99,0.0002019,2]
[321695817,1712401832011,-177.75,0.0002019,2]
[321695818,1712401832021,-151.05,0.00020199,2]
[321695819,1712401832031,-499.99,0.00020199,2]
[321695820,1712401832041,-386.54,0.00020199,2]
[321695821,1712401832051,-167.46,0.00020257,2]
[321695822,1712401832061,-151.05,0.00020261,2]
[321695823,1712401832071,-18.15,0.00020271,2]
[321695824,1712401832081,-151.05,0.00020323,2]
[321695825,1712401832091,-302.40106342,0.0002037,2]
[321695826,1712401832100,-151.05,0.00020384,2]
[321695827,1712401832110,-151.05,0.00020446,2]
[321695828,1712401832119,-3962.56222321,0.00020459,2]
[321695829,1712401832129,-151.05,0.00020507,2]
[321695830,1712401832138,-151.05,0.00020569,2]
[321695831,1712401832148,-151.05,0.0002063,2]
[321695832,1712401832157,-151.05,0.00020692,2]
[321695833,1712401832168,-3144.12142798,0.000207,2]
[321695834,1712401832178,-9787.23906008,0.00020711,2]
[321695835,1712401832187,-151.05,0.00020753,2]
[321695836,1712401832197,-156.22455142,0.00020808,2]
[321695837,1712401832206,-282.60423576,0.00020808,2]
[321695838,1712401832218,-388.97370236,0.00020808,2]
[321695839,1712401832231,-155.2401728,0.00020808,2]
[321695840,1712401832241,-2258.59066381,0.00020808,2]
[321695841,1712401832250,-373.25788922,0.00020808,2]
[321695842,1712401832259,-169.88260382,0.00020808,2]
[321695843,1712401832271,-260.47354147,0.00020808,2]
[321695844,1712401832280,-233.7031591,0.00020808,2]
[321695845,1712401832290,-969.46683418,0.00020808,2]
[321695846,1712401832302,-178.54679095,0.00020808,2]
[321695847,1712401832312,-462.094188,0.00020808,2]
[321695848,1712401832322,-598.95650689,0.00020808,2]
[321695849,1712401832332,-213.56217089,0.00020808,2]
[321695850,1712401832342,-643.63898191,0.00020808,2]
[321695851,1712401832351,-188.17659091,0.00020808,2]
[321695852,1712401832361,-419.24411442,0.00020808,2]
[321695853,1712401832371,-4779.08228919,0.00020808,2]
[321695854,1712401832380,-546.66582277,0.00020808,2]
[321695855,1712401832391,-195.516325,0.00020808,2]
[321695856,1712401832400,-4570.53799336,0.00020809,2]
[321695857,1712401832410,-500.0,0.00020809,2]
[321695858,1712401832420,-250.52233814,0.00020809,2]
[321695859,1712401832429,-367460.32375312,0.0002081,2]
[321695860,1712401832442,-9977.1792328,0.0002081,2]
[321695861,1712401832454,-1334.24484287,0.0002081,2]
[321695862,1712401832469,-514.33101265,0.0002081,2]
[321695863,1712401832486,-206778.63227863,0.0002081,2]
[321695864,1712401832496,-14267.84925705,0.00020811,2]
[321695865,1712401832505,-383.59,0.00020811,2]
[321695866,1712401832515,-151.05,0.00020815,2]
[321695867,1712401832524,-151.05,0.00020876,2]
[321695868,1712401832534,-154.53413923,0.00020899,2]
[321695869,1712401832543,-314.41124288,0.000209,2]
[321695870,1712401832553,-275.91653702,0.000209,2]
[321695871,1712401832563,-2031.10401291,0.000209,2]
[321695872,1712401832573,-5342.64072662,0.000209,2]
[321695873,1712401832582,-240.0428482,0.000209,2]
[321695874,1712401832592,-302.40106342,0.00020936,2]
[321695875,1712401832602,-151.05,0.00020938,2]
[321695876,1712401832612,-373.85072569,0.00020998,2]
[321695877,1712401832621,-400.0,0.00020998,2]
[321695878,1712401832630,-155.0,0.00020998,2]
[321695879,1712401832640,-156.00439476,0.00020998,2]
[321695880,1712401832649,-156.84885123,0.00020998,2]
[321695881,1712401832658,-1808.56889921,0.00020998,2]
[321695882,1712401832668,-156.51660388,0.00020998,2]
[321695883,1712401832678,-162.39545897,0.00020998,2]
[321695884,1712401832688,-500.0,0.00020998,2]
[321695885,1712401832697,-156.51582035,0.00020998,2]
[321695886,1712401832707,-155.0,0.00020998,2]
[321695887,1712401832717,-615.96369687,0.00020998,2]
[321695888,1712401832727,-661.63817277,0.00020998,2]
[321695889,1712401832737,-3202.47597328,0.00020998,2]
[321695890,1712401832748,-3072.4557778,0.00020998,2]
[321695891,1712401832757,-155.0,0.00020998,2]
[321695892,1712401832767,-155.58493034,0.00020998,2]
[321695893,1712401832777,-880.45661014,0.00020998,2]
[321695894,1712401832788,-516832.38674015,0.00020999,2]
[321695895,1712401832800,-629.26449483,0.00020999,2]
[321695896,1712401832817,-506.45679781,0.00020999,2]
[321695897,1712401832829,-595.6501903,0.00020999,2]
[321695898,1712401832848,-8858.18996792,0.00020999,2]
[321695899,1712401832860,-2992.4019571,0.00020999,2]
[321695900,1712401832872,-379.39881895,0.00020999,2]
[321695901,1712401832884,-1358.74142889,0.00020999,2]
[321695902,1712401832898,-495.48279711,0.00020999,2]
[321695903,1712401832914,-350.28794672,0.00020999,2]
[321695906,1712401837832,-375.77516328,0.00020808,2]
[321695907,1712401837842,-68.34203174,0.00020999,2]
[321695908,1712401837937,-1776.04962931,0.00020999,2]
[321695909,1712401838101,-785.92464769,0.00020999,2]
[321695910,1712401838114,-669.42707453,0.00020999,2]
[321695911,1712401838125,-4162.156948,0.00020999,2]
[321695912,1712401838138,-5432.77476992,0.00020999,2]
[321695913,1712401838150,-10050.33948551,0.00020999,2]
[321695914,1712401838162,-4506.79076484,0.00020999,2]
[321695915,1712401838174,-1345.81534778,0.00020999,2]
[321695920,1712401840075,-41389.67862423,0.00020999,2]
[321695921,1712401840130,-382.86132369,0.00020999,2]
[321696143,1712401842837,-875.46072017,0.00020999,2]
[321696163,1712401843055,-3171.25411921,0.00020999,2]
[321696165,1712401843067,-24986.43675,0.00020999,2]
[321696281,1712401844910,-8927.52481486,0.00020999,2]
[321696282,1712401844921,-500.0,0.00020999,2]
[321696283,1712401844930,-153.16814585,0.00020999,2]
[321696284,1712401844940,-151.05,0.00020999,2]
[321696285,1712401844949,-1003598.37535464,0.00021,2]
[321696286,1712401844959,-116603.74928188,0.00021,2]
[321696287,1712401844968,-1888.070144,0.00021,2]
[321696288,1712401844977,-3962.56222321,0.00021014,2]
[321696289,1712401844987,-151.05,0.00021061,2]
[321696290,1712401844996,-151.05,0.00021122,2]
[321696291,1712401845006,-9787.23906004,0.00021176,2]
[321696292,1712401845015,-6732.67146849,0.00021244,2]
[321696293,1712401845025,-154.53413923,0.00021471,2]
[321696294,1712401845034,-302.40106342,0.00021503,2]
[321696295,1712401845043,-290.6053586,0.00021508,2]
[321696296,1712401845053,-3962.56222321,0.00021569,2]
[321696297,1712401845063,-2658.83338936,0.00021576,2]
[321696299,1712401846440,-272.15993378,0.00020998,2]
[321696300,1712401846450,-624.05493274,0.00020998,2]
[321696301,1712401846459,-72.09234751,0.00021576,2]
[321696302,1712401846471,-644.58765686,0.00021576,2]
[321696303,1712401846486,-2044.32649714,0.00021576,2]
[321696306,1712401971063,-150.0,0.00021399,2]
[321696309,1712402048180,151.0,0.00029718,120]
[321696318,1712402340000,-428.16501449,0.00019166,2]
[321696320,1712402350327,-171.83498551,0.00019167,2]
[321696323,1712402587148,151.0,0.00029129,120]
[321696331,1712402981545,151.0,0.00029296,120]
[321696350,1712403032819,-229.31501449,0.00019167,2]
[321696351,1712403032830,-226.63020998,0.00020507,2]
[321696352,1712403032844,-4168.25591219,0.00020507,2]
[321696353,1712403032854,-2098.78,0.00020508,2]
[321696354,1712403032869,-12950.91162676,0.00020575,2]
[321696355,1712403032886,-6035.90494395,0.00020575,2]
[321696356,1712403032934,-4903.18342929,0.00020575,2]
[321696357,1712403032943,-1447.89774541,0.00020728,2]
[321696358,1712403032953,-928.3,0.00020801,2]
[321696359,1712403032963,-14861.23,0.00020812,2]
[321696360,1712403032973,-1107.51546747,0.00020998,2]
[321696361,1712403032982,-1447.89774541,0.00021086,2]
[321696362,1712403032991,-167.91,0.0002114,2]
[321696363,1712403033001,-663.68,0.0002114,2]
[321696364,1712403033010,-566.7,0.00021161,2]
[321696365,1712403033020,-499.99,0.00021179,2]
[321696366,1712403033029,-1447.89774541,0.00021253,2]
[321696367,1712403033039,-233.5573,0.00021274,2]
[321696368,1712403033049,-315.85419358,0.00021289,2]
[321696369,1712403033058,-163.06,0.0002139,2]
[321696370,1712403033068,-3.19616599,0.00021399,2]
[321696371,1712403033078,-401.15,0.00021431,2]
[321696372,1712403033088,-2519.80464423,0.00021431,2]
[321696373,1712403033098,-6588.04611262,0.00021431,2]
[321696374,1712403033110,-547.43728168,0.00021431,2]
[321696375,1712403033130,-1799.62490306,0.00021431,2]
[321696376,1712403033142,-408.75323981,0.00021431,2]
[321696377,1712403033167,-6786.65726824,0.00021431,2]
[321696378,1712403033177,-272.15,0.00021435,2]
[321696379,1712403033186,-165.29,0.00021437,2]
[321696380,1712403033195,-624.05493274,0.00021498,2]
[321696381,1712403033205,-427.95988549,0.00021498,2]
[321696382,1712403033215,-600.0,0.00021498,2]
[321696383,1712403033224,-1234.40459937,0.00021498,2]
[321696384,1712403033234,-13751.78860413,0.00021499,2]
[321696385,1712403033486,-50000.0,0.000215,2]
[321696386,1712403033497,-50039.0,0.000215,2]
[321696387,1712403033507,-433.3,0.00021531,2]
[321696388,1712403033517,-376.25546,0.00021576,2]
[321696389,1712403033526,-164.35,0.00021626,2]
[321696390,1712403033536,-1447.89774541,0.00021805,2]
[321696391,1712403033545,-2519.80464414,0.00021816,2]
[321696392,1712403033555,-16130.5188054,0.00021816,2]
[321696393,1712403033564,-1516.57677507,0.00021916,2]
[321696394,1712403033573,-240.50424977,0.00021916,2]
[321696395,1712403033582,-157.27382018,0.00021916,2]
[321696396,1712403033592,-525.59160921,0.00021916,2]
[321696397,1712403033605,-312.4020961,0.00021916,2]
[321696398,1712403033615,-844.34598028,0.00021916,2]
[321696399,1712403033624,-278.48434964,0.00021917,2]
[321696400,1712403033634,-215.39360953,0.00021917,2]
[321696401,1712403033644,-500.0,0.00021917,2]
[321696402,1712403033652,-646.0161278,0.00021917,2]
[321696403,1712403033661,-500.0,0.00021917,2]
[321696404,1712403033671,-250.0,0.00021918,2]
[321696405,1712403033681,-16275.43,0.00021918,2]
[321696406,1712403033691,-783.12017279,0.00022,2]
[321696407,1712403033699,-1447.89774541,0.00022048,2]
[321696408,1712403033710,-239.01,0.00022192,2]
[321696409,1712403033720,-452.01337185,0.00022201,2]
[321696410,1712403033729,-231.03083838,0.00022201,2]
[321696411,1712403033738,-2519.80464414,0.00022202,2]
[321696412,1712403033748,-2154.62011365,0.00022202,2]
[321696414,1712403038138,-475.5467042,0.00022202,2]
[321696438,1712403040249,-712.48494072,0.00022202,2]
[321696439,1712403040261,-340.0090999,0.00022202,2]
[321696440,1712403040416,-476.2010242,0.00022202,2]
[321696441,1712403040480,-30.52841968,0.00022202,2]
[321696495,1712403043039,-10502.95830004,0.00022202,2]
[321696496,1712403043095,-1438.17020301,0.00022202,2]
[321696497,1712403043104,-489.89464576,0.00022462,2]
[321696498,1712403043113,-2544.88286987,0.0002256,2]
[321696499,1712403043122,-285.80681738,0.00022561,2]
[321696500,1712403043132,-301.08288737,0.00022561,2]
[321696501,1712403043140,-158.06576871,0.00022562,2]
[321696502,1712403043150,-500.0,0.00022562,2]
[321696503,1712403043159,-500.0,0.00022562,2]
[321696504,1712403043168,-546.5,0.00022562,2]
[321696505,1712403043177,-281.68907786,0.00022562,2]
[321696506,1712403043186,-508.68180739,0.00022562,2]
[321696507,1712403043195,-540.64333405,0.00022562,2]
[321696520,1712403046161,-401.8442912,0.00022201,2]
[321696521,1712403046170,-236.23500734,0.00022378,2]
[321696522,1712403046182,-650.42499266,0.00022378,2]
[321696523,1712403046192,-1518.51100734,0.00022562,2]
[321696524,1712403046218,-297.20900393,0.00022562,2]
[321696525,1712403046330,-968.30721403,0.00022562,2]
[321696526,1712403046342,-8765.18944065,0.00022562,2]
[321696527,1712403046352,-9964.40327459,0.00022562,2]
[321696528,1712403046364,-9637.44672541,0.00022562,2]
[321696529,1712403046373,-186.8,0.00022562,2]